bitfinex/quotes_ETHUSD_20250806
["timestamp","ask_amount","ask_price","bid_price","bid_amount"]
[1754442279703,0.1792,3583.9,3582.8,12.73244486]
[1754442279704,0.6676,3583.6,3582.8,12.73244486]
[1754442280292,0.1792,3583.9,3582.8,12.73244486]
[1754442280293,0.6676,3583.3,3582.8,7.70614486]
[1754442280506,0.6676,3583.3,3582.8,12.02214486]
[1754442280917,0.6676,3583.3,3582.8,12.45094486]
[1754442281210,0.4506,3583.5,3582.8,12.45094486]
[1754442281391,0.6676,3583.5,3582.8,12.45094486]
[1754442281978,0.1392,3583.7,3582.8,12.73244486]
[1754442282180,0.04,3583.9,3583.8,2.79033428]
[1754442282375,0.04,3583.9,3583.8,7.24553428]
[1754442282798,0.04,3583.9,3583.8,7.79553428]
[1754442283003,0.6808,3583.9,3583.8,7.24553428]
[1754442283223,1.1548,3583.9,3583.8,7.24553428]
[1754442283428,1e-08,3583.9,3583.8,11.79913024]
[1754442283614,0.001,3584.0,3583.9,6.34025642]
[1754442286404,1.1158,3584.0,3583.9,10.10525642]
[1754442287628,1.1158,3584.0,3583.9,7.10525642]
[1754442287927,1.255,3584.0,3583.9,7.10525642]
[1754442288292,1.255,3584.0,3583.9,7.10425642]
[1754442289530,1.255,3584.0,3583.9,2.79025642]
[1754442289733,1.255,3584.0,3583.9,7.10425642]
[1754442290230,1.255,3584.0,3583.9,2.79025642]
[1754442290433,1.255,3584.0,3583.9,7.10425642]
[1754442292937,0.1392,3584.3,3583.9,5.30346021]
[1754442293101,0.474,3584.6,3584.2,2.79002287]
[1754442293303,0.6132,3584.6,3584.5,2.78978937]
[1754442293498,1.254,3584.6,3584.5,7.10278937]
[1754442294498,0.1392,3584.6,3584.5,7.10278937]
[1754442295038,1.254,3584.6,3584.5,7.10278937]
[1754442296338,0.1392,3584.6,3584.5,7.10278937]
[1754442296536,1.254,3584.6,3584.2,2.7900152]
[1754442296843,1.51915701,3584.5,3584.3,2.78994001]
[1754442297029,1.254,3584.4,3584.3,2.78994001]
[1754442298743,1.254,3584.4,3584.2,7.10297154]
[1754442298915,1.1148,3584.3,3584.2,2.78997154]
[1754442299110,1.1148,3584.3,3584.2,7.10297154]
[1754442299625,1.1148,3584.3,3584.1,2.79004699]
[1754442299801,0.001,3584.6,3584.3,2.78992152]
[1754442300001,0.001,3584.6,3584.3,7.10192152]
[1754442300002,1.1148,3584.5,3584.3,7.10192152]
[1754442300243,0.1392,3584.4,3584.3,2.78992152]
[1754442300438,1.254,3584.4,3584.3,4.312]
[1754442301042,1.254,3584.4,3584.3,7.10194503]
[1754442301606,0.001,3584.6,3584.5,2.78978937]
[1754442301810,0.001,3584.6,3584.5,7.10178937]
[1754442302005,1.1158,3584.6,3584.5,7.10178937]
[1754442302239,1.1158,3584.6,3584.5,2.78978937]
[1754442302456,1.1158,3584.6,3584.1,2.79003384]
[1754442302457,1.1158,3584.6,3584.1,2.7900467]
[1754442302615,0.39054014,3584.5,3584.2,7.10197267]
[1754442302815,1.1148,3584.4,3584.2,7.10197267]
[1754442303149,0.001,3584.6,3584.3,2.78994503]
[1754442303449,0.001,3584.6,3584.3,2.78992777]
[1754442303645,0.001,3584.6,3584.4,2.7898672]
[1754442303810,0.001,3584.6,3584.5,2.78978937]
[1754442304009,0.001,3584.6,3584.5,7.10178937]
[1754442304217,0.475,3584.6,3584.5,7.10178937]
[1754442304512,1.1158,3584.6,3584.5,7.10178937]
[1754442304932,1.1158,3584.6,3584.5,2.78978937]
[1754442305440,0.001,3584.6,3584.5,2.78978937]
[1754442305609,0.001,3584.6,3584.5,4.52657156]
[1754442305813,0.001,3584.6,3584.5,4.96927156]
[1754442307543,0.04,3584.9,3584.8,2.7895559]
[1754442307764,0.04,3584.9,3584.8,7.1015559]
[1754442308549,0.04,3584.9,3584.6,2.78964655]
[1754442308550,1.1548,3584.9,3583.3,2.79072363]
[1754442308847,0.04,3584.9,3583.8,2.79029705]
[1754442309049,1.1148,3584.8,3584.1,2.79010072]
[1754442309211,0.04,3584.9,3584.3,2.7899321]
[1754442309212,0.474,3584.7,3584.3,2.7899321]
[1754442309406,1.1148,3584.7,3584.4,2.78985847]
[1754442309610,0.04,3584.9,3584.4,2.78985847]
[1754442309819,0.04,3584.9,3584.7,2.78957682]
[1754442310017,1.1148,3584.8,3584.5,7.1007734]
[1754442310216,1.1148,3584.7,3584.5,7.1007734]
[1754442310451,0.6408,3584.6,3584.5,7.1007734]
[1754442310750,0.04,3584.9,3584.8,2.7895559]
[1754442311110,0.04,3584.9,3583.4,1.00405881]
[1754442311111,1.1548,3584.9,3583.4,1.00405881]
[1754442311442,1.1148,3584.8,3583.7,2.79041214]
[1754442311617,0.04,3584.9,3584.0,2.79017857]
[1754442311618,0.1392,3584.1,3584.0,2.79017857]
[1754442311819,0.1392,3584.1,3584.0,4.311]
[1754442311820,1.1148,3584.1,3584.0,4.311]
[1754442312146,1.254,3584.1,3584.0,4.311]
[1754442312314,1.254,3584.1,3583.6,2.79041924]
[1754442312511,0.1392,3583.7,3583.1,0.002]
[1754442312715,0.1392,3583.5,3583.1,0.002]
[1754442312935,0.1392,3583.2,3583.1,0.002]
[1754442313525,1.2178,3583.2,3583.1,0.002]
[1754442313924,0.1392,3583.2,3583.1,0.002]
[1754442314333,0.1392,3583.2,3583.1,2.7928794]
[1754442315752,0.4677,3583.6,3583.5,2.79056788]
[1754442316131,1.0786,3583.6,3583.5,2.79056788]
[1754442316809,1.2178,3583.6,3583.1,0.002]
[1754442317110,0.1392,3583.2,3583.1,0.002]
[1754442317454,0.1392,3583.2,3583.1,2.7928794]
[1754442319292,0.1392,3583.2,3583.1,3.8467092]
[1754442319492,1.0786,3584.1,3583.8,2.79032067]
[1754442319790,7.10184508,3584.5,3583.7,2.79038497]
[1754442319791,0.1392,3583.9,3583.7,2.79038497]
[1754442319963,3.86878662,3584.0,3583.3,7.10267182]
[1754442320155,0.1392,3583.4,3583.3,2.79067182]
[1754442320359,1.2178,3583.4,3583.3,2.79067182]
[1754442320894,0.1392,3583.4,3583.3,2.79067182]
[1754442322096,1.2178,3583.4,3583.2,2.79078242]
[1754442322297,0.1392,3583.4,3583.2,4.312]
[1754442322498,1.0786,3583.3,3583.2,7.10279861]
[1754442322965,0.6109,3583.3,3583.2,7.10279861]
[1754442323165,0.6109,3583.3,3583.2,2.79079861]
[1754442323997,0.1392,3583.4,3583.3,2.79072363]
[1754442325499,0.1392,3583.4,3583.3,3.78027585]
[1754442325708,0.1392,3583.4,3583.3,4.42067585]
[1754442325905,0.1392,3583.4,3583.3,8.73267585]
[1754442326307,0.1392,3583.4,3583.3,9.19037585]
[1754442326669,0.1392,3583.4,3583.3,8.73267585]
[1754442327003,0.1392,3583.4,3583.3,9.19037585]
[1754442327711,0.1392,3583.4,3583.3,8.09227585]
[1754442328481,0.1392,3583.4,3583.3,3.78027585]
[1754442328682,0.1392,3583.4,3583.3,8.09227585]
[1754442329173,0.1392,3583.4,3583.3,8.73267585]
[1754442329503,0.1392,3583.4,3583.3,9.19037585]
[1754442330208,0.7501,3583.4,3583.3,8.09227585]
[1754442330506,0.7501,3583.4,3583.3,2.79072363]
[1754442330681,0.7501,3583.4,3583.3,7.10272363]
[1754442330866,0.1392,3583.4,3583.3,7.10272363]
[1754442331604,0.6109,3584.1,3584.0,2.79017857]
[1754442332019,0.7501,3584.1,3584.0,2.79017857]
[1754442332190,0.1392,3584.1,3584.0,2.79017857]
[1754442332578,0.25798478,3584.2,3584.1,2.79010072]
[1754442332881,0.1392,3584.1,3584.0,7.10217857]
[1754442334187,1.2178,3584.1,3583.7,4.312]
[1754442334388,0.1392,3583.8,3583.7,7.10239063]
[1754442334602,1.2178,3583.8,3583.7,7.10239063]
[1754442334803,1.2178,3583.8,3583.7,2.79039063]
[1754442336220,1.2178,3583.8,3583.5,4.312]
[1754442336388,0.1392,3583.6,3583.5,4.312]
[1754442336709,1.2178,3583.6,3583.5,4.312]
[1754442336907,1.2178,3583.6,3583.1,0.002]
[1754442337120,0.1392,3583.2,3583.1,0.002]
[1754442337321,0.1392,3583.2,3583.1,7.5364794]
[1754442337616,0.1392,3583.2,3583.1,8.1768794]
[1754442339330,0.6109,3583.9,3583.8,2.79033428]
[1754442339331,0.25837732,3583.9,3583.8,2.79033428]
[1754442339625,0.4677,3584.3,3584.0,2.79012682]
[1754442339626,0.25837956,3584.1,3584.0,2.79012682]
[1754442339793,0.25837956,3584.2,3584.1,2.79010072]
[1754442340209,0.39757956,3584.2,3584.1,2.79010072]
[1754442340418,0.39757956,3584.2,3584.1,3.77932986]
[1754442340619,0.25837956,3584.2,3584.1,3.77932986]
[1754442340927,4.9229,3584.6,3584.4,2.7898672]
[1754442341122,0.86937999,3584.5,3584.4,2.7898672]
[1754442341329,1.00857999,3584.5,3584.4,2.7898672]
[1754442341833,0.55,3584.3,3583.1,0.002]
[1754442342031,2.79080151,3583.2,3583.1,0.002]
[1754442342329,3.06988166,3583.2,3583.1,0.002]
[1754442342628,4.14848166,3583.2,3583.1,0.002]
[1754442342825,4.18336667,3583.2,3583.1,0.002]
[1754442343039,4.14848166,3583.2,3583.1,0.002]
[1754442343843,2.90211861,3583.8,3583.2,2.79080151]
[1754442343844,0.6049,3583.8,3583.2,2.79080151]
[1754442344015,0.25869437,3583.7,3583.4,2.79056965]
[1754442344340,0.6049,3583.8,3583.2,2.79080151]
[1754442344341,0.25869437,3583.6,3583.5,2.79056788]
[1754442344729,0.25869437,3583.6,3583.3,2.79072363]
[1754442344930,0.86359437,3583.5,3583.1,0.002]
[1754442345132,0.25869437,3583.4,3583.3,2.79072363]
[1754442345848,0.86359437,3583.4,3583.1,0.002]
[1754442346146,0.25869437,3583.3,3583.2,2.79080151]
[1754442346343,0.6049,3583.4,3583.2,2.79080151]
[1754442346540,0.25867439,3583.3,3583.2,2.79080151]
[1754442347045,0.6049,3584.2,3583.2,1.66136383]
[1754442347222,2.79074025,3584.6,3583.2,1.66136383]
[1754442347223,0.25863686,3584.1,3584.0,2.79017857]
[1754442347609,0.25863686,3584.1,3584.0,3.22007857]
[1754442347810,0.25863686,3584.1,3584.0,2.79017857]
[1754442350049,0.25863686,3584.1,3583.8,2.79028148]
[1754442350230,0.86353686,3584.0,3583.8,2.79028304]
[1754442350461,0.25863686,3583.9,3583.8,2.79028304]
[1754442351760,0.39783686,3583.9,3583.8,2.79028304]
[1754442352146,0.39787948,3583.9,3583.8,2.79028304]
[1754442352359,0.1392,3583.9,3583.8,2.79028304]
[1754442352527,0.7441,3583.9,3583.8,2.79028304]
[1754442352722,0.7441,3583.9,3583.2,0.60136383]
[1754442352922,0.7441,3583.9,3583.1,0.1412]
[1754442352923,0.46707917,3583.8,3583.1,0.1412]
[1754442353119,3.22255358,3583.8,3583.1,2.93202391]
[1754442353326,1.0371,3583.7,3583.1,2.79282391]
[1754442353636,0.1392,3583.2,3583.1,2.79282391]
[1754442353836,0.7441,3583.2,3583.1,0.002]
[1754442354041,1.1763,3583.2,3583.1,0.002]
[1754442356141,1.57299647,3583.2,3583.1,0.002]
[1754442356449,3.96710151,3583.2,3583.1,0.002]
[1754442358543,7.00198652,3583.2,3583.1,0.002]
[1754442358842,6.96710151,3583.2,3583.1,0.002]
[1754442359162,7.22581101,3583.2,3583.1,0.002]
[1754442359376,7.77581101,3583.2,3583.1,1e-08]
[1754442359582,10.50447287,3583.2,3583.1,1e-08]
[1754442360087,2.79126891,3582.6,3582.5,0.002]
[1754442360230,6.34158059,3582.2,3582.1,1e-08]
[1754442360570,6.48078059,3582.2,3582.1,1e-08]
[1754442360787,13.14394581,3582.2,3582.1,1e-08]
[1754442362331,7.49903747,3582.2,3582.1,1e-08]
[1754442362537,4.71739166,3582.2,3582.1,1e-08]
[1754442362861,4.4592,3582.2,3582.1,1e-08]
[1754442363037,4.71741501,3582.2,3582.1,1e-08]
[1754442363367,4.4592,3582.2,3582.1,1e-08]
[1754442364737,0.1392,3582.2,3582.1,1e-08]
[1754442365136,4.4572,3582.2,3582.1,1e-08]
[1754442366841,7.85368059,3582.2,3582.1,1e-08]
[1754442367042,9.35039661,3582.2,3582.1,1e-08]
[1754442367665,6.12661602,3582.2,3582.1,1e-08]
[1754442367871,5.0621,3582.2,3582.1,1e-08]
[1754442368073,4.4542,3582.2,3582.1,2.79165853]
[1754442368369,4.4542,3582.2,3582.1,0.42990001]
[1754442368573,4.4542,3582.2,3582.1,3.85165853]
[1754442370653,0.1392,3582.2,3582.1,3.85165853]
[1754442371048,0.1392,3582.2,3582.1,3.88610517]
[1754442371562,0.1392,3582.2,3582.1,3.22155853]
[1754442372667,0.1392,3582.2,3582.1,2.79165853]
[1754442373874,0.1392,3582.2,3582.1,1e-08]
[1754442374270,0.7282,3582.2,3582.1,1e-08]
[1754442374472,1.1708,3582.2,3582.1,1e-08]
[1754442374779,0.1392,3582.2,3582.1,1e-08]
[1754442375875,0.7282,3582.2,3582.1,1e-08]
[1754442376076,0.1392,3582.2,3582.1,2.79165853]
[1754442376282,0.1392,3582.2,3582.1,4.45343906]
[1754442377850,0.1392,3582.2,3582.1,3.84103906]
[1754442380790,0.4436,3583.0,3582.8,2.79111309]
[1754442380791,4.314,3582.9,3582.8,2.79111309]
[1754442380995,4.57169715,3582.9,3582.8,2.79111309]
[1754442381194,4.71089715,3582.9,3582.8,2.79111309]
[1754442382287,0.39689715,3582.9,3582.8,3.83311309]
[1754442382491,0.39689715,3582.9,3582.8,3.22071309]
[1754442382890,0.1392,3582.9,3582.8,2.79111309]
[1754442383366,0.1392,3582.9,3582.8,3.83311309]
[1754442383566,0.1392,3582.9,3582.8,3.88314953]
[1754442383774,0.1392,3582.9,3582.8,4.49554953]
[1754442385784,0.1402,3583.0,3582.9,2.79103519]
[1754442386102,0.1402,3583.0,3582.9,3.83303519]
[1754442387291,0.001,3583.0,3582.9,3.83303519]
[1754442387494,0.001,3583.0,3582.9,5.07932187]
[1754442387694,0.001,3583.0,3582.9,4.03732187]
[1754442387890,0.001,3583.0,3582.9,2.79103519]
[1754442390696,0.001,3583.0,3582.9,6.83303519]
[1754442390897,0.001,3583.3,3583.2,2.79080151]
[1754442391097,0.001,3583.3,3583.2,7.10280151]
[1754442391276,0.001,3583.3,3583.2,8.14480151]
[1754442391475,0.001,3583.3,3583.2,9.53139417]
[1754442392492,0.001,3583.3,3583.2,12.53139417]
[1754442392840,0.001,3583.3,3583.2,12.67059417]
[1754442396929,0.1402,3583.8,3583.7,2.79041214]
[1754442397244,0.001,3584.6,3584.1,2.79010072]
[1754442397450,0.1402,3584.6,3584.5,2.78978937]
[1754442398241,0.1402,3584.6,3584.5,3.21938937]
[1754442398544,0.001,3584.6,3584.5,6.83178937]
[1754442398752,1e-08,3584.9,3584.7,2.78963372]
[1754442398891,1e-08,3584.9,3584.8,10.68437558]
[1754442399088,1e-08,3584.9,3584.8,11.25317558]
[1754442400339,1.03160001,3584.9,3584.8,4.311]
[1754442400505,1.03160001,3584.9,3584.8,2.7895559]
[1754442400506,0.13920001,3584.9,3584.8,2.7895559]
[1754442400722,0.13920001,3584.9,3584.8,10.1005559]
[1754442400723,1e-08,3584.9,3584.8,10.1005559]
[1754442401095,0.58900001,3584.9,3584.8,10.1005559]
[1754442401295,1e-08,3584.9,3584.8,10.1005559]
[1754442401922,1e-08,3584.9,3584.8,11.38957622]
[1754442402124,1e-08,3584.9,3584.8,11.81917622]
[1754442402351,1e-08,3584.9,3584.8,12.56977622]
[1754442403228,1e-08,3584.9,3584.8,12.55477622]
[1754442403796,1e-08,3584.9,3584.8,12.50737622]
[1754442404001,1e-08,3584.9,3584.8,13.10477622]
[1754442405354,1e-08,3584.9,3584.8,11.52777622]
[1754442406259,1e-08,3584.9,3584.8,7.21777622]
[1754442406426,1e-08,3584.9,3584.8,11.52777622]
[1754442407106,0.00100001,3584.9,3584.8,11.52777622]
[1754442407360,0.00100001,3584.9,3584.8,7.21777622]
[1754442407648,0.00100001,3584.9,3584.8,11.52777622]
[1754442407855,0.00100001,3584.9,3584.8,11.98307622]
[1754442409739,0.00100001,3584.9,3584.8,11.52777622]
[1754442410246,0.00100001,3584.9,3584.8,11.98307622]
[1754442410441,0.00100001,3584.9,3584.8,7.21777622]
[1754442410646,0.00100001,3584.9,3584.8,11.52677622]
[1754442413153,0.00100001,3584.9,3584.8,7.0975559]
[1754442413154,0.59340001,3584.9,3584.8,7.0975559]
[1754442413816,1.02130001,3584.9,3584.8,7.0975559]
[1754442416430,0.59340001,3584.9,3584.8,7.0975559]
[1754442417728,1.02130001,3584.9,3584.8,7.0975559]
[1754442417933,1.02130001,3584.9,3584.8,7.0475559]
[1754442418252,1.02130001,3584.9,3584.8,2.7395559]
[1754442418421,0.59340001,3584.9,3584.8,2.7395559]
[1754442419461,1.02130001,3584.9,3583.4,0.4553]
[1754442419658,0.00100001,3584.9,3584.5,2.78977024]
[1754442419822,1.0203,3584.8,3584.4,2.78984938]
[1754442420161,1.0203,3584.7,3584.4,2.78984938]
[1754442420359,1.0203,3584.7,3584.3,4.308]
[1754442420360,1.0203,3584.6,3583.9,2.79025642]
[1754442420659,0.1392,3584.4,3583.0,0.002]
[1754442420878,0.1392,3583.3,3583.0,0.002]
[1754442421028,2.82523603,3583.8,3583.0,0.002]
[1754442421224,1.33735689,3583.7,3583.0,0.002]
[1754442421437,0.1392,3583.1,3583.0,0.002]
[1754442421889,3.9503794,3583.1,3583.0,0.002]
[1754442422865,3.98526539,3583.1,3583.0,0.002]
[1754442423242,6.9503794,3583.1,3583.0,0.002]
[1754442425365,5.4685,3583.1,3583.0,0.002]
[1754442426478,0.7316,3583.1,3583.0,0.002]
[1754442426796,5.4685,3583.1,3583.0,0.002]
[1754442426957,8.80971771,3583.1,3583.0,0.002]
[1754442427460,1.57063831,3583.1,3583.0,0.002]
[1754442427668,0.1392,3583.1,3583.0,0.002]
[1754442427856,1.1595,3583.1,3583.0,0.002]
[1754442428056,1.19438599,3583.1,3583.0,0.002]
[1754442428402,0.1392,3583.1,3583.0,2.79295729]
[1754442428706,0.1392,3583.1,3583.0,3.80666385]
[1754442428908,0.1392,3583.1,3583.0,3.35136385]
[1754442429433,0.1392,3583.1,3583.0,2.79295729]
[1754442429551,0.1392,3583.1,3583.0,3.24825729]
[1754442429947,0.1392,3583.1,3583.0,3.84565729]
[1754442430151,0.1392,3583.1,3583.0,2.79295729]
[1754442430966,1.1595,3583.1,3583.0,2.79295729]
[1754442431786,0.7316,3583.1,3583.0,2.79295729]
[1754442433998,1.34350786,3583.1,3583.0,0.002]
[1754442434853,0.1392,3583.1,3583.0,2.79295729]
[1754442435275,0.1392,3583.1,3583.0,0.002]
[1754442435474,1.1941,3583.1,3583.0,0.002]
[1754442437712,0.7239,3583.1,3583.0,0.002]
[1754442437915,0.7239,3583.1,3583.0,2.79295729]
[1754442438415,0.7239,3583.1,3583.0,0.002]
[1754442438791,0.1392,3583.1,3583.0,0.002]
[1754442439010,0.1392,3583.1,3583.0,2.79295729]
[1754442439809,0.1392,3583.1,3583.0,0.002]
[1754442440010,0.7239,3583.1,3583.0,0.002]
[1754442441614,0.7239,3583.1,3583.0,2.79295729]
[1754442441912,0.7239,3583.1,3583.0,0.002]
[1754442442624,0.7239,3583.1,3583.0,2.79295729]
[1754442442929,0.1392,3583.1,3583.0,2.79295729]
[1754442443625,0.1392,3583.1,3583.0,0.002]
[1754442443820,0.7239,3583.1,3583.0,0.002]
[1754442445163,4.5352894,3583.1,3583.0,0.002]
[1754442447151,1.27421,3583.1,3583.0,0.002]
[1754442449167,0.1392,3583.1,3583.0,0.002]
[1754442449457,0.1392,3583.1,3583.0,3.22095729]
[1754442449615,0.1392,3583.1,3583.0,0.002]
[1754442449816,0.7239,3583.1,3583.0,0.002]
[1754442450231,0.1392,3583.1,3583.0,0.002]
[1754442450829,0.1392,3583.1,3583.0,3.22095729]
[1754442451034,0.1392,3583.1,3583.0,4.4440975]
[1754442452246,0.1392,3583.1,3583.0,3.78635729]
[1754442453158,0.1392,3583.1,3583.0,3.22095729]
[1754442454072,0.7239,3583.1,3583.0,0.002]
[1754442454240,1.1941,3583.1,3583.0,0.002]
[1754442454436,5.5021,3583.1,3583.0,0.002]
[1754442454642,6.33138842,3583.1,3583.0,0.002]
[1754442455084,9.12226782,3583.1,3583.0,0.002]
[1754442455369,9.3805679,3583.1,3583.0,0.002]
[1754442456832,0.84300008,3583.1,3583.0,0.002]
[1754442457042,4.4472,3583.1,3583.0,0.002]
[1754442457683,8.2929794,3583.1,3583.0,0.002]
[1754442458658,5.0319,3583.1,3583.0,0.002]
[1754442458832,4.4472,3583.1,3583.0,0.002]
[1754442459037,0.1392,3583.1,3583.0,0.002]
[1754442459342,5.0319,3583.1,3583.0,0.002]
[1754442459767,5.29053428,3583.1,3583.0,0.002]
[1754442460178,0.39783428,3583.1,3583.0,0.002]
[1754442460379,4.70583428,3583.1,3583.0,0.002]
[1754442460888,4.70606192,3583.1,3583.0,0.002]
[1754442463005,5.27456192,3583.1,3583.0,0.002]
[1754442463462,5.0157,3583.1,3583.0,0.002]
[1754442465369,4.4472,3583.1,3583.0,0.002]
[1754442466911,3.0,3584.0,3583.0,0.002]
[1754442467152,0.1392,3583.1,3583.0,4.08936612]
[1754442467295,4.4462,3583.1,3583.0,4.08936612]
[1754442468533,0.1392,3583.1,3583.0,4.08936612]
[1754442469235,4.307,3583.5,3583.4,2.79064575]
[1754442469437,4.307,3583.5,3583.4,3.24004575]
[1754442469637,0.1392,3583.5,3583.4,4.41082391]
[1754442470314,0.1392,3583.5,3583.4,3.39372391]
[1754442470512,0.7077,3583.5,3583.0,0.002]
[1754442470738,0.1392,3583.3,3583.0,0.002]
[1754442470901,0.1392,3583.1,3583.0,2.79290851]
[1754442471542,0.7077,3583.1,3583.0,0.002]
[1754442472652,0.1392,3583.1,3583.0,2.79295729]
[1754442473010,0.7077,3583.1,3583.0,0.002]
[1754442473311,1.72067,3583.1,3583.0,0.002]
[1754442473922,4.5115494,3583.1,3583.0,0.002]
[1754442474141,6.02667,3583.1,3583.0,0.002]
[1754442475036,8.8175494,3583.1,3583.0,0.002]
[1754442476326,6.02667,3583.1,3583.0,0.002]
[1754442476728,5.56167,3583.1,3583.0,0.002]
[1754442476933,5.0137,3583.1,3583.0,0.002]
[1754442477640,4.4452,3583.1,3583.0,0.002]
[1754442478646,8.2695794,3583.1,3583.0,0.002]
[1754442479014,5.4787,3583.1,3583.0,0.002]
[1754442479417,5.0137,3583.1,3583.0,0.002]
[1754442480471,0.1392,3583.1,3583.0,3.81005729]
[1754442480762,0.5685,3584.0,3583.9,2.79025642]
[1754442480763,4.305,3584.0,3583.9,2.79025642]
[1754442480922,4.305,3584.0,3583.9,3.23965642]
[1754442481122,4.305,3584.0,3583.9,3.80735642]
[1754442481530,4.4442,3584.0,3583.8,2.79028257]
[1754442481815,4.305,3584.0,3583.8,2.79033337]
[1754442482138,4.305,3584.0,3583.9,2.79025642]
[1754442482545,4.4442,3584.0,3583.9,2.79025642]
[1754442483947,4.4442,3584.0,3583.8,0.4494]
[1754442484158,4.4442,3584.0,3583.8,3.23972783]
[1754442484881,4.4442,3584.0,3583.8,0.4494]
[1754442485049,4.4442,3584.0,3583.6,2.79042611]
[1754442485244,4.305,3584.0,3583.5,0.5677]
[1754442485456,0.1392,3583.6,3583.5,2.79055655]
[1754442486151,0.1392,3583.6,3583.0,4.307]
[1754442486349,0.1392,3583.4,3583.3,2.79069966]
[1754442486674,4.304,3583.6,3583.1,2.79086634]
[1754442486876,0.5685,3583.4,3583.0,0.002]
[1754442487037,4.304,3583.3,3583.0,0.002]
[1754442487234,4.8725,3583.3,3583.0,0.002]
[1754442487438,0.1392,3583.1,3583.0,0.002]
[1754442488174,0.1392,3583.1,3583.0,2.79295729]
[1754442488345,0.1392,3583.1,3583.0,0.002]
[1754442489754,0.6042,3583.1,3583.0,0.002]
[1754442490083,2.22516201,3583.1,3583.0,0.002]
[1754442490763,0.7077,3583.1,3583.0,0.002]
[1754442493280,0.1392,3583.1,3583.0,0.002]
[1754442493679,0.6981,3583.1,3583.0,0.002]
[1754442494081,1.17908599,3583.1,3583.0,0.002]
[1754442494467,1.1442,3583.1,3583.0,0.002]
[1754442494794,1.96810203,3583.1,3583.0,0.002]
[1754442495092,4.75898143,3583.1,3583.0,0.002]
[1754442495283,4.79386742,3583.1,3583.0,0.002]
[1754442495485,4.75898143,3583.1,3583.0,0.002]
[1754442496601,1.96810203,3583.1,3583.0,0.002]
[1754442496799,1.52200203,3583.1,3583.0,0.002]
[1754442497172,5.82500203,3583.1,3583.0,0.002]
[1754442497985,0.1392,3583.1,3583.0,0.002]
[1754442498187,4.4422,3583.1,3583.0,0.002]
[1754442498397,4.4422,3583.1,3583.0,0.4757]
[1754442498709,0.1392,3583.1,3583.0,3.26665729]
[1754442498910,4.4422,3583.1,3583.0,3.82845729]
[1754442499063,0.1392,3583.1,3583.0,3.82845729]
[1754442500269,0.1392,3583.1,3583.0,3.26665729]
[1754442500470,0.1392,3583.1,3583.0,2.79295729]
[1754442500798,0.1392,3583.1,3583.0,3.26665729]
[1754442501521,0.1392,3583.1,3583.0,4.49041188]
[1754442501667,0.5589,3584.3,3583.7,2.79034939]
[1754442501863,2.79028135,3583.9,3583.0,0.002]
[1754442502099,0.1392,3583.1,3583.0,2.79294168]
[1754442502512,0.1392,3583.1,3583.0,3.26664168]
[1754442502660,0.1392,3583.1,3583.0,3.92859048]
[1754442502863,9.48994025,3584.4,3583.7,2.79036162]
[1754442502864,4.303,3583.8,3583.7,2.79036162]
[1754442503066,4.303,3583.8,3583.7,3.26406162]
[1754442503272,0.1392,3583.8,3583.7,3.26406162]
[1754442503465,0.1392,3583.8,3583.7,3.82586162]
[1754442504268,0.1392,3583.8,3583.7,4.48750174]
[1754442504472,6.7,3584.4,3584.3,2.78994503]
[1754442504699,4.302,3584.4,3584.1,2.79003399]
[1754442504901,0.1392,3584.2,3584.1,2.79003399]
[1754442505492,0.6981,3584.2,3583.7,0.66164012]
[1754442505804,0.5589,3584.2,3584.1,2.79010072]
[1754442506011,4.302,3584.4,3584.2,2.78994772]
[1754442506181,4.4412,3584.3,3584.2,2.79002287]
[1754442507168,5.0001,3584.3,3583.8,2.79026388]
[1754442507410,4.302,3584.3,3584.1,2.79007456]
[1754442507569,0.5589,3584.2,3584.1,2.79007456]
[1754442507769,0.6981,3584.2,3584.1,2.79007456]
[1754442508271,0.6981,3584.2,3584.0,2.79015087]
[1754442508488,0.5589,3584.2,3584.1,2.79010072]
[1754442508983,0.6981,3584.2,3584.0,2.79015248]
[1754442509197,0.5589,3584.2,3584.1,2.79010072]
[1754442509394,4.302,3584.3,3583.2,0.1392]
[1754442509395,4.302,3584.3,3583.9,2.79019243]
[1754442509596,0.5589,3584.2,3583.9,2.79019243]
[1754442509820,0.1392,3584.0,3583.3,3.0]
[1754442510021,0.1392,3583.8,3583.5,2.79053933]
[1754442510223,0.1392,3583.6,3583.1,3.0]
[1754442510423,0.4461,3583.7,3583.2,2.79080151]
[1754442510596,0.5589,3583.5,3583.4,2.79059082]
[1754442510925,4.301,3583.9,3583.4,2.79059082]
[1754442511122,0.1392,3583.5,3583.4,2.79064575]
[1754442511709,0.1392,3583.5,3583.1,0.91396488]
[1754442511916,0.1392,3583.2,3583.0,0.002]
[1754442512281,0.5589,3583.1,3583.0,0.002]
[1754442513335,5.306,3583.1,3583.0,0.002]
[1754442514033,8.95535926,3583.1,3583.0,0.002]
[1754442514247,8.92047327,3583.1,3583.0,0.002]
[1754442516088,5.26379387,3583.1,3583.0,0.002]
[1754442516311,4.4402,3583.1,3583.0,0.002]
[1754442516508,7.7899794,3583.1,3583.0,0.002]
[1754442516716,5.4452,3583.1,3583.0,0.002]
[1754442516936,4.9991,3583.1,3583.0,0.002]
[1754442517106,0.6981,3583.1,3583.0,0.002]
[1754442517630,4.9991,3583.1,3583.0,0.002]
[1754442518039,7.7899794,3583.1,3583.0,0.002]
[1754442518395,4.9991,3583.1,3583.0,0.002]
[1754442519098,0.6981,3583.1,3583.0,0.002]
[1754442519300,0.1392,3583.1,3583.0,0.002]
[1754442519490,0.1392,3583.1,3583.0,0.4757]
[1754442519491,4.4402,3583.1,3583.0,0.4757]
[1754442520099,4.4402,3583.1,3583.0,2.79295729]